bitfinex/quotes_SOLUSD_20260105
["timestamp","ask_amount","ask_price","bid_price","bid_amount"]
[1767643098775,7.33855693,138.13,138.06,0.69675893]
[1767643099163,7.33855693,138.13,138.07,0.69675893]
[1767643099385,29.2486896,138.13,138.07,0.69675893]
[1767643099587,0.10366093,138.11,138.07,0.69675893]
[1767643099778,0.5698011,138.12,138.07,0.69675893]
[1767643101569,7.24060531,138.11,138.07,0.69675893]
[1767643104795,0.099,138.1,138.03,0.69675893]
[1767643104966,4.37633341,138.09,138.03,0.69675893]
[1767643105884,0.10366093,138.08,138.03,0.69675893]
[1767643106081,3.81124033,138.07,138.03,0.69675893]
[1767643106594,3.91490126,138.08,138.03,0.69675893]
[1767643106794,7.24270297,138.07,138.03,0.69675893]
[1767643108778,7.34596882,138.08,138.03,0.69675893]
[1767643110179,11.15720915,138.08,138.03,0.69675893]
[1767643111212,0.55595627,138.05,137.99,7.24674325]
[1767643111378,0.11270638,138.04,138.0,0.68711467]
[1767643111581,3.92394671,138.04,138.0,0.68711467]
[1767643112685,2.99542628,138.03,137.98,0.68711467]
[1767643112987,2.44390251,138.02,137.98,0.68711467]
[1767643113194,10.24048984,138.03,137.98,0.68711467]
[1767643113390,10.21048983,138.03,137.98,0.68711467]
[1767643114297,2.44390251,138.02,137.98,0.68711467]
[1767643114699,9.68896607,138.03,137.98,0.68711467]
[1767643115399,10.22876716,138.03,137.98,0.68711467]
[1767643115905,7.24506356,138.03,137.99,0.68711467]
[1767643116806,9.68896607,138.03,137.99,0.68711467]
[1767643117004,2.54726644,138.02,137.97,0.68711467]
[1767643118210,9.79276085,138.02,137.97,0.68711467]
[1767643118909,9.79276085,138.02,137.97,7.93499273]
[1767643119084,7.24549441,138.02,137.98,0.68711467]
[1767643119991,0.53539307,138.01,137.97,7.93499273]
[1767643121880,0.10336393,138.0,137.95,75.48711467]
[1767643122590,2.44390251,138.01,137.96,0.68711467]
[1767643122780,9.68992608,138.01,137.96,0.68711467]
[1767643123285,2.44390251,137.99,137.96,0.68711467]
[1767643123706,0.10336393,137.99,137.95,61.6]
[1767643123892,2.44390251,137.97,137.94,0.68711467]
[1767643124094,2.44390251,137.98,137.94,0.68711467]
[1767643125310,9.6914451,137.98,137.94,0.68711467]
[1767643125487,2.44390251,137.99,137.94,0.68711467]
[1767643125688,2.9837036,138.01,137.95,0.68711467]
[1767643126009,2.9837036,138.01,137.96,0.68711467]
[1767643126512,2.44390251,137.99,137.96,0.68711467]
[1767643127610,9.69109267,137.99,137.96,0.68711467]
[1767643127804,7.24719016,137.99,137.96,0.68711467]
[1767643128109,9.78951142,138.0,137.96,0.68711467]
[1767643129508,9.69051142,138.0,137.96,0.68711467]
[1767643131821,2.97929558,137.99,137.94,0.68711467]
[1767643132193,2.44390251,137.98,137.94,0.68711467]
[1767643132390,2.97929558,137.99,137.94,0.68711467]
[1767643132591,7.24660891,138.0,137.95,0.68711467]
[1767643132788,10.22925739,138.02,137.97,0.68711467]
[1767643133206,9.6894563,138.02,137.97,0.68711467]
[1767643133806,9.7884563,138.02,137.97,0.68711467]
[1767643134302,9.6894563,138.02,137.97,0.68711467]
[1767643134694,9.7884563,138.02,137.97,0.68711467]
[1767643134910,9.6894563,138.02,137.97,0.68711467]
[1767643135813,9.7884563,138.02,137.97,0.68711467]
[1767643136015,2.97929558,138.01,137.97,0.68711467]
[1767643136319,2.54290251,138.01,137.97,0.69275963]
[1767643136923,0.53539307,138.0,137.96,0.69275963]
[1767643138025,0.53539307,138.0,137.96,62.29275963]
[1767643138719,0.53539307,138.0,137.96,69.54118962]
[1767643139522,7.24586402,138.01,137.97,0.69275963]
[1767643140924,7.24546175,138.02,137.97,0.69275963]
[1767643141099,7.24546175,138.02,137.98,0.65984627]
[1767643141298,7.24533086,138.02,137.98,0.65984627]
[1767643141597,7.24322758,138.06,137.99,0.65984627]
[1767643142112,7.34222758,138.06,137.99,0.65984627]
[1767643142909,7.34222758,138.06,138.01,0.65984627]
[1767643143099,33.75147437,138.07,138.01,0.65984627]
[1767643143100,20.54194699,138.07,138.01,0.65984627]
[1767643143313,0.10336393,138.07,138.01,0.65984627]
[1767643145024,0.10336393,138.07,138.02,0.65984627]
[1767643145025,7.34644051,138.07,138.02,0.65984627]
[1767643145914,7.34644051,138.07,138.03,0.65984627]
[1767643147906,7.34129432,138.08,138.04,0.65984627]
[1767643149429,9.78519683,138.08,138.04,0.65984627]
[1767643150026,7.77837299,138.07,138.03,0.65984627]
[1767643150813,7.2423751,138.08,138.04,0.65984627]
[1767643151013,7.3413751,138.08,138.04,0.65984627]
[1767643152712,7.24184239,138.09,138.04,0.65984627]
[1767643153035,7.34084239,138.09,138.04,0.65984627]
[1767643153745,10.22554599,138.09,138.04,0.65984627]
[1767643154116,7.78164348,138.09,138.04,0.65984627]
[1767643154734,0.10336393,138.06,138.03,61.6]
[1767643156726,7.24283267,138.07,138.03,62.25984627]
[1767643157044,7.78221105,138.08,138.04,0.65984627]
[1767643157920,7.24240996,138.08,138.04,0.65984627]
[1767643158117,10.22554249,138.09,138.04,0.65984627]
[1767643158332,7.78163998,138.09,138.04,0.65984627]
[1767643159848,10.22554249,138.09,138.04,0.65984627]
[1767643160389,0.65314113,138.13,138.05,13.2]
[1767643160523,7.43858309,138.15,138.05,13.92437522]
[1767643160719,7.43871654,138.15,138.07,0.65984627]
[1767643161144,2.44390251,138.13,138.08,13.2]
[1767643161544,0.65314426,138.12,138.08,13.2]
[1767643162541,0.65314113,138.11,138.08,13.2]
[1767643162749,0.65314113,138.11,138.08,20.44217408]
[1767643162937,0.65314113,138.1,138.07,13.2]
[1767643164447,0.65314426,138.09,138.07,13.2]
[1767643165655,0.65314113,138.12,138.07,21.10251801]
[1767643167250,0.65314113,138.12,138.07,82.70251801]
[1767643170559,0.65314113,138.1,138.05,0.18519577]
[1767643170745,0.65314113,138.09,138.07,13.2]
[1767643170950,0.62314113,138.09,138.07,13.2]
[1767643172960,0.62314113,138.09,138.07,13.6357]
[1767643173865,0.62314113,138.09,138.07,0.4357]
[1767643174439,0.69198235,138.07,138.01,7.89637748]
[1767643174638,4.50702086,138.07,138.03,0.65089577]
[1767643175164,0.69198235,138.07,138.03,0.65089577]
[1767643176240,0.69198235,138.06,138.02,20.44527546]
[1767643176562,0.69198235,138.06,138.02,21.09617123]
[1767643180061,0.69198235,138.06,138.02,13.85089577]
[1767643180772,0.69198235,138.05,138.02,13.85089577]
[1767643180943,0.69198235,138.05,138.02,13.2]
[1767643187780,0.69198235,138.04,138.01,0.65089577]
[1767643187969,0.69198235,138.04,138.01,13.2]
[1767643189477,3.81503851,138.06,138.02,0.65089577]
[1767643189662,0.69198235,138.05,138.02,0.65089577]
[1767643189869,0.69198235,138.03,138.01,13.2]
[1767643190060,0.69198235,138.04,138.01,13.2]
[1767643191661,0.69198235,138.04,138.0,7.89720403]
[1767643191868,0.69198235,138.04,138.02,13.2]
[1767643193074,0.69198235,138.05,138.02,13.2]
[1767643194569,11.723772,138.06,138.02,13.85089577]
[1767643195083,0.66542032,138.05,138.02,13.85089577]
[1767643197484,0.66542032,138.05,138.02,0.65089577]
[1767643198474,0.66542032,138.05,138.0,21.09710052]
[1767643198770,0.66542032,138.05,138.01,0.65089577]
[1767643199199,0.66542032,138.05,138.01,7.8967363]
[1767643200686,0.66542032,138.05,138.01,0.65089577]
[1767643201387,4.48045883,138.05,138.01,0.65089577]
[1767643202388,0.69476079,138.04,138.01,0.65089577]
[1767643202568,0.69476079,138.04,138.02,13.2]
[1767643202761,18.10726266,138.07,138.03,0.65089577]
[1767643202762,7.93814666,138.06,138.03,0.65089577]
[1767643202962,0.69476079,138.06,138.0,0.65089577]
[1767643203161,7.24242599,138.08,138.0,0.65089577]
[1767643203162,0.69476079,138.04,138.0,0.65089577]
[1767643203395,4.5097993,138.04,138.0,0.65089577]
[1767643204476,0.69476079,138.02,137.96,0.65089577]
[1767643204791,0.69476079,138.01,137.98,0.65089577]
[1767643205381,0.69476079,138.01,137.97,20.44767462]
[1767643206272,0.69476079,138.01,137.97,13.2]
[1767643206682,0.69476079,138.04,137.98,0.65089577]
[1767643207769,0.69476079,138.04,137.99,7.24690194]
[1767643207976,0.69476079,138.03,138.0,13.2]
[1767643209773,0.69476079,138.04,138.0,21.09696042]
[1767643210098,0.69476079,138.05,138.01,0.65089577]
[1767643210682,7.93822819,138.06,138.01,0.65089577]
[1767643210899,7.93822819,138.06,138.0,20.44606465]
[1767643210900,0.69476079,138.05,138.0,20.44606465]
[1767643211202,7.93853762,138.05,138.01,0.65089577]
[1767643211373,0.69476079,138.04,138.01,13.2]
[1767643211572,0.69476079,138.04,138.01,11.54565656]
[1767643211766,11.65357613,138.05,138.01,0.71132109]
[1767643211991,11.65357613,138.05,138.0,61.6]
[1767643211992,0.099,138.04,138.0,61.6]
[1767643212301,0.099,138.04,138.0,69.55763024]
[1767643213277,0.59476079,138.05,138.01,0.71132109]
[1767643213475,18.10608449,138.08,138.03,0.71132109]
[1767643213476,7.24273505,138.07,138.03,0.71132109]
[1767643213794,11.65223433,138.08,138.03,0.71132109]
[1767643213994,4.39998274,138.04,138.0,0.71132109]
[1767643214166,4.39998274,138.04,137.99,61.6]
[1767643214167,0.10871839,138.03,138.01,12.6139576]
[1767643214367,3.81503851,138.03,137.98,0.71132109]
[1767643214573,3.81503851,138.04,137.97,0.71132109]
[1767643214878,3.81503851,138.0,137.97,0.71132109]
[1767643215090,3.81503851,138.01,137.97,0.71132109]
[1767643215287,11.06003844,138.03,137.98,0.71132109]
[1767643216198,7.24499993,138.03,137.99,0.71132109]
[1767643216498,11.05953969,138.04,138.0,0.71132109]
[1767643216800,7.24450118,138.04,138.0,0.71132109]
[1767643217305,11.0590177,138.05,138.0,0.71132109]
[1767643218291,3.81503851,138.04,138.0,0.71132109]
[1767643218592,3.81503851,138.03,138.0,0.71132109]
[1767643220419,11.06003861,138.03,137.98,74.8]
[1767643220706,11.06003861,138.03,137.98,75.51132109]
[1767643221299,11.06003861,138.03,137.99,0.71132109]
[1767643222299,3.81503851,138.04,137.99,0.71132109]
[1767643223382,61.55851678,138.08,138.0,0.71132109]
[1767643223585,3.81503851,138.06,138.0,0.71132109]
[1767643223979,29.16266306,138.08,138.02,0.71132109]
[1767643224179,5.41078239,138.07,138.01,13.91132109]
[1767643224378,25.34762455,138.08,138.01,21.15675772]
[1767643224578,5.4114619,138.07,138.01,21.15675772]
[1767643224881,7.24217844,138.08,138.02,0.71132109]
[1767643225303,7.24187855,138.09,138.02,0.71132109]
[1767643225992,11.05691706,138.09,138.02,0.71132109]
[1767643226194,3.81503851,138.08,138.03,0.71132109]
[1767643226495,11.05774148,138.07,138.03,0.71132109]
[1767643226698,3.81503851,138.04,137.99,0.71132109]
[1767643226901,3.81503851,138.01,137.97,0.71132109]
[1767643230300,11.0600578,138.03,137.98,0.71132109]
[1767643230497,7.24501929,138.03,137.98,0.71132109]
[1767643230689,3.81503851,138.02,137.98,0.71132109]
[1767643231505,11.06057892,138.02,137.98,0.71132109]
[1767643231680,11.06000086,138.03,137.98,0.71132109]
[1767643231880,7.24496235,138.03,137.98,0.71132109]
[1767643232078,7.24375226,138.05,137.99,0.70819389]
[1767643232296,7.24375226,138.05,138.01,0.70819389]
[1767643232508,7.24340211,138.06,138.01,0.70819389]
[1767643233299,11.05844062,138.06,138.01,0.70819389]
[1767643234610,9.6865643,138.06,138.01,0.70819389]
[1767643235464,18.10736425,138.07,138.01,0.70819389]
[1767643235707,2.44316219,138.06,138.01,0.70819389]
[1767643236408,18.10736425,138.07,138.01,0.70819389]
[1767643236911,2.44316219,138.02,137.99,0.70819389]
[1767643237211,2.44316219,138.02,137.97,0.70819389]
[1767643237402,9.68878099,138.02,137.97,0.70819389]
[1767643239108,7.2456188,138.02,137.97,0.70819389]
[1767643239320,9.68878099,138.02,137.97,0.70819389]
[1767643239797,2.44316219,138.01,137.97,0.70819389]
[1767643241801,9.68878099,138.02,137.97,0.70819389]
[1767643243926,2.44316219,138.0,137.96,0.70819389]
[1767643244216,25.35893571,138.02,137.96,0.70819389]
[1767643244217,2.44316219,137.99,137.96,0.70819389]
[1767643244416,25.35893571,138.02,137.93,7.34972772]
[1767643244417,2.44316219,137.98,137.94,13.90819389]
[1767643244617,2.44316219,137.98,137.95,0.70819389]
[1767643245003,2.44316219,137.98,137.94,13.2]
[1767643245004,2.44316219,137.97,137.93,14.00819389]
[1767643245623,2.44316219,137.96,137.93,14.00819389]
[1767643246026,2.44316219,137.96,137.94,0.70819389]
[1767643246522,7.24838272,137.97,137.93,1e-08]
[1767643246523,2.44316219,137.95,137.93,1e-08]
[1767643246816,9.69154491,137.97,137.92,0.80819389]
[1767643248522,27.81142604,137.97,137.92,1e-08]
[1767643248728,2.44316219,137.94,137.92,1e-08]
[1767643248904,2.44316219,137.93,137.91,8.28814186]
[1767643249305,2.44316219,137.96,137.91,8.99633575]
[1767643249629,2.44316219,137.95,137.91,8.28814186]
[1767643250124,9.69262015,137.95,137.91,8.28814186]
[1767643250721,9.69262015,137.95,137.91,8.99633575]
[1767643250920,9.69173414,137.96,137.92,0.70819389]
[1767643251731,2.44316219,137.93,137.91,8.28814186]
[1767643252229,9.69314036,137.94,137.91,8.28814186]
[1767643252404,7.24997817,137.94,137.91,8.28814186]
[1767643252604,9.69314036,137.94,137.91,8.28814186]
[1767643252926,2.44316219,137.93,137.91,0.1]
[1767643253228,7.24997817,137.94,137.89,0.1]
[1767643253229,2.44316219,137.92,137.89,0.1]
[1767643253429,25.37380012,137.94,137.89,0.1]
[1767643253430,2.44316219,137.91,137.89,0.1]
[1767643253604,25.37380012,137.94,137.89,0.1]
[1767643253803,2.44316219,137.91,137.89,0.1]
[1767643254319,9.6945011,137.91,137.89,0.1]
[1767643254517,9.6945011,137.91,137.89,1e-08]
[1767643255928,2.44316219,137.9,137.89,1e-08]
[1767643256227,25.37335073,137.94,137.89,1e-08]
[1767643256430,2.44316219,137.92,137.89,1e-08]
[1767643256729,2.44316219,137.92,137.89,0.65396642]
[1767643257225,2.44316219,137.93,137.89,0.65396642]
[1767643258025,2.44316219,137.92,137.89,0.65396642]
[1767643258222,9.6939657,137.92,137.89,0.65396642]
[1767643258524,9.6939657,137.92,137.89,1e-08]
[1767643258728,2.44316219,137.91,137.89,1e-08]
[1767643260119,9.6934352,137.93,137.89,1e-08]
[1767643262730,2.44316219,137.93,137.89,0.6538939]
[1767643263226,7.24987662,137.94,137.89,0.6538939]
[1767643263434,2.44316219,137.93,137.89,0.6538939]
[1767643264019,2.44316219,137.93,137.89,1e-08]
[1767643265333,25.37031553,137.96,137.89,1e-08]
[1767643265531,2.44316219,137.93,137.89,0.6538939]
[1767643268439,9.69327914,137.93,137.89,0.6538939]
[1767643269948,2.44316219,137.92,137.89,0.6538939]
[1767643270644,2.44316219,137.9,137.88,0.1]
[1767643270846,2.41316219,137.89,137.88,0.1]
[1767643271342,2.41316219,137.89,137.87,0.1]
[1767643271845,9.66561246,137.89,137.87,0.1]
[1767643272824,7.25245027,137.89,137.87,0.1]
[1767643273031,2.44316219,137.88,137.85,13.22]
[1767643273432,9.69561246,137.89,137.85,13.22]
[1767643273631,9.69561246,137.89,137.86,0.65389389]
[1767643274144,7.25245027,137.89,137.86,0.65389389]
[1767643274648,9.69561246,137.89,137.86,0.65389389]
[1767643275149,7.25245027,137.89,137.86,0.65389389]
[1767643275336,9.69561246,137.89,137.86,0.65389389]
[1767643276546,49.4694911,137.94,137.86,0.65389389]
[1767643276547,25.3751903,137.93,137.86,0.65389389]
[1767643276724,2.44316219,137.89,137.86,0.65389389]
[1767643277423,2.44316219,137.89,137.85,0.65389389]
[1767643279051,7.25228597,137.89,137.85,0.65389389]
[1767643279553,9.69544816,137.89,137.85,0.65389389]
[1767643281824,7.25184712,137.9,137.85,0.65389389]
[1767643282030,2.44316219,137.92,137.86,0.65389389]
[1767643282328,27.81917001,137.93,137.88,0.65389389]
[1767643283028,7.25005437,137.93,137.88,0.65389389]
[1767643283242,2.44316219,137.97,137.89,0.65389389]
[1767643283448,2.44316219,137.97,137.91,0.65389389]
[1767643283844,2.44316219,137.98,137.91,0.65389389]
[1767643284146,38.58231883,138.0,137.91,0.65389389]
[1767643284147,41.02548102,138.0,137.91,0.65389389]
[1767643284356,27.80548102,138.0,137.91,0.65389389]
[1767643284542,7.24637681,138.0,137.91,0.65389389]
[1767643285142,2.44316219,138.0,137.93,0.65389389]
[1767643285342,2.44316219,138.0,137.95,0.65389389]
[1767643285938,2.44316219,137.99,137.95,0.65389389]
[1767643286355,25.3593131,138.02,137.95,0.65389389]
[1767643286553,27.80247529,138.02,137.95,0.65389389]
[1767643286758,9.68848895,138.02,137.95,0.65389389]
[1767643287449,9.68848895,138.02,137.95,7.90280547]
[1767643287662,9.68848895,138.02,137.96,0.65389389]
[1767643288355,25.35864367,138.02,137.96,0.65389389]
[1767643288550,27.80180586,138.02,137.96,0.65389389]
[1767643289147,9.68848895,138.02,137.97,0.65389389]
[1767643291263,2.44316219,138.01,137.95,0.68399731]
[1767643291560,25.35864367,138.02,137.95,0.68399731]
[1767643291738,27.80180586,138.02,137.95,0.68399731]
[1767643292348,2.44316219,138.0,137.95,0.68399731]
[1767643292763,7.24690194,137.99,137.95,0.68399731]
[1767643293563,9.68848895,138.02,137.96,0.68399731]
[1767643293945,2.44316219,138.01,137.96,0.68399731]
[1767643294144,2.44316219,137.99,137.92,0.68399731]
[1767643294457,61.58527749,138.02,137.92,0.68399731]
[1767643294659,7.24795245,137.97,137.92,0.68399731]
[1767643295063,11.06947596,137.97,137.92,0.68399731]
[1767643298355,3.82152351,137.96,137.92,0.68399731]
[1767643298982,11.07046631,137.96,137.92,0.68399731]
[1767643299958,7.2489428,137.96,137.92,0.68399731]
[1767643300165,7.24801216,137.97,137.92,0.68399731]
[1767643300365,3.82152351,137.97,137.92,0.68399731]
[1767643300559,3.82152351,138.0,137.93,0.68399731]
[1767643300876,3.82152351,138.0,137.95,0.68399731]
[1767643300877,7.24656505,138.0,137.95,0.68399731]
[1767643302683,13.2,138.03,137.96,0.68399731]
[1767643302684,7.24532676,138.02,137.96,0.68399731]
[1767643302851,7.24532676,138.02,137.95,7.24881615]
[1767643303050,3.82152351,138.01,137.95,7.24881615]
[1767643303468,3.82152351,138.01,137.96,0.68399731]
[1767643303769,7.24532676,138.02,137.96,0.68399731]
[1767643303960,11.06685027,138.02,137.96,0.68399731]
[1767643304267,3.82152351,138.01,137.96,0.68399731]
[1767643304661,25.35864367,138.02,137.96,0.68399731]
[1767643304869,29.18016718,138.02,137.96,0.68399731]
[1767643307478,3.82152351,137.99,137.93,0.68399731]
[1767643307664,3.82152351,137.99,137.94,0.68399731]
[1767643308773,3.82152351,137.97,137.92,0.68399731]
[1767643308955,3.82152351,137.97,137.93,0.68399731]
[1767643309471,11.06947714,137.97,137.93,0.68399731]
[1767643310055,11.06907023,137.98,137.93,0.68399731]
[1767643311088,11.06907023,137.98,137.93,7.93395673]
[1767643311384,11.06907023,137.98,137.94,0.68399731]
[1767643312373,7.24754672,137.98,137.94,0.68399731]
[1767643313861,25.36503686,137.99,137.94,0.68399731]
[1767643314081,3.82152351,137.98,137.94,0.68399731]
[1767643315284,3.82152351,137.97,137.93,0.71776211]
[1767643315695,3.82152351,137.98,137.93,0.71776211]
[1767643316070,7.24752582,137.98,137.93,0.71776211]
[1767643316268,17.02152351,138.0,137.94,0.71776211]
[1767643317592,7.24707387,137.99,137.94,0.71776211]
[1767643318690,25.36432874,137.99,137.94,0.71776211]
[1767643318994,3.82152351,137.98,137.94,0.71776211]
[1767643319172,3.82152351,137.98,137.93,0.71776211]
[1767643319776,7.24795245,137.97,137.93,0.71776211]
[1767643320897,7.24637681,138.0,137.93,0.71776211]
[1767643321696,25.35727801,138.03,137.95,0.72073813]
[1767643322002,7.24322758,138.06,137.97,0.72073813]
[1767643322493,11.06475109,138.06,137.97,0.72073813]
[1767643322889,25.35395284,138.05,137.97,7.9682426]
[1767643323069,25.35395284,138.05,137.98,0.72073813]
[1767643323272,25.34993661,138.07,137.98,0.72073813]
[1767643323993,0.2,138.09,138.01,0.72073813]
[1767643324174,0.2,138.09,138.03,0.72073813]
[1767643324978,0.2,138.09,138.04,0.72073813]
[1767643325519,7.24043796,138.12,138.07,0.72073813]
[1767643325696,7.24043796,138.12,138.08,0.72073813]
[1767643325877,7.24043796,138.12,138.08,0.66073815]
[1767643326076,7.23970307,138.13,138.08,0.66073815]
[1767643326278,11.06122658,138.13,138.08,0.66073815]
[1767643326670,7.23970307,138.13,138.08,0.66073815]
[1767643326872,11.06122658,138.13,138.08,0.66073815]
[1767643329390,4.02152351,138.15,138.09,0.72073813]
[1767643329593,0.2,138.15,138.1,0.72073813]
[1767643330479,0.2,138.15,138.12,0.72073813]
[1767643330796,0.2,138.15,138.13,0.72073813]
[1767643332398,0.2,138.16,138.15,0.72073813]
[1767643332777,7.43750237,138.17,138.15,0.72073813]
[1767643333501,7.43750237,138.17,138.13,0.72073813]
[1767643333694,7.43750237,138.17,138.12,75.52073813]
[1767643333896,7.53650237,138.17,138.12,13.92073813]
[1767643334201,0.299,138.17,138.12,13.92073813]
[1767643334398,0.2,138.17,138.13,0.72073813]
[1767643334704,0.2,138.17,138.13,7.95988069]
[1767643334897,0.2,138.17,138.13,0.72073813]
[1767643336705,4.02152351,138.19,138.14,0.72073813]
[1767643337287,0.2,138.19,138.14,0.72073813]
[1767643337487,11.25807691,138.19,138.14,0.72073813]
[1767643337701,7.4365534,138.19,138.14,0.72073813]
[1767643337877,11.25807691,138.19,138.14,0.72073813]
[1767643338889,4.02152351,138.19,138.14,0.72073813]
[1767643339090,11.25796726,138.19,138.14,0.72073813]
[1767643339593,3.82152351,138.16,138.12,0.72073813]
[1767643339902,26.1961962,138.19,138.12,0.72073813]
[1767643340093,11.25796726,138.19,138.13,0.72073813]
[1767643340604,3.82152351,138.18,138.13,0.72073813]
[1767643340807,11.05886041,138.18,138.13,0.72073813]
[1767643341398,0.2,138.19,138.14,0.72073813]
[1767643341602,0.2,138.19,138.16,0.72073813]
[1767643341789,0.2,138.19,138.16,0.6881217]
[1767643342405,0.2,138.19,138.16,0.62812172]
[1767643342910,0.2,138.21,138.15,13.2]
[1767643343105,0.2,138.21,138.16,7.23748105]
[1767643343309,0.2,138.24,138.16,25.33244341]
[1767643343606,0.68036871,138.23,138.14,18.09684946]
[1767643343782,0.68036871,138.23,138.15,13.2]
[1767643343980,3.82152351,138.22,138.15,13.2]
[1767643344183,0.68036871,138.23,138.15,13.2]
[1767643344415,0.68036871,138.23,138.16,0.72073813]
[1767643344416,4.50189222,138.23,138.16,0.72073813]
[1767643344910,7.91517771,138.23,138.17,0.72073813]
[1767643345112,7.234809,138.23,138.17,0.72073813]
[1767643346812,7.91517771,138.23,138.17,0.72073813]
[1767643347514,0.68036871,138.2,138.17,0.72073813]
[1767643347688,0.68036871,138.22,138.17,0.72073813]
[1767643347881,4.50189222,138.21,138.17,0.72073813]
[1767643348106,0.68036871,138.17,138.13,0.72073813]
[1767643348311,0.68036871,138.16,138.11,13.92073813]
[1767643348503,7.23850886,138.15,138.12,0.72073813]
[1767643349020,11.73882954,138.18,138.13,0.72073813]
[1767643349487,0.68036871,138.18,138.13,0.72073813]
[1767643349686,7.23663244,138.19,138.13,0.72073813]
[1767643350295,7.91700115,138.19,138.13,0.72073813]
[1767643350502,7.23599493,138.2,138.15,0.72073813]
[1767643350702,7.23599493,138.2,138.15,13.92073813]
[1767643350914,11.75708884,138.2,138.15,13.92073813]
[1767643351109,0.6995704,138.19,138.15,13.92073813]
[1767643351486,0.6995704,138.19,138.12,7.2399231]
[1767643351718,4.52109391,138.19,138.14,0.69658707]
[1767643351900,0.6995704,138.18,138.14,0.69658707]
[1767643352616,7.93678711,138.18,138.14,0.69658707]
[1767643352822,7.23721671,138.18,138.14,0.69658707]
[1767643353132,0.6995704,138.19,138.15,0.69658707]
[1767643353427,4.52109391,138.22,138.15,0.69658707]
[1767643353911,0.6995704,138.21,138.15,0.69658707]
[1767643354096,3.82152351,138.22,138.15,0.69658707]
[1767643354097,7.23499518,138.22,138.15,0.69658707]
[1767643354495,7.93456558,138.22,138.15,0.69658707]
[1767643354684,7.93456558,138.22,138.16,0.69658707]
[1767643355817,7.93456558,138.22,138.17,13.89658707]
[1767643356591,0.6995704,138.21,138.17,13.89658707]
[1767643359420,7.93497187,138.21,138.17,13.89658707]
[1767643360411,7.93497187,138.21,138.15,7.2383145]
[1767643360412,0.6995704,138.2,138.15,7.93490157]
[1767643360589,3.13669964,138.18,138.13,0.69658707]
[1767643360795,3.13669964,138.18,138.14,13.18]
[1767643361210,10.37381185,138.18,138.14,13.18]
[1767643362218,7.93668261,138.18,138.14,13.18]
[1767643362396,10.37381185,138.18,138.14,13.18]
[1767643364997,0.6995704,138.23,138.15,0.69658707]
[1767643365204,10.37101925,138.23,138.17,0.69658707]
[1767643365523,10.37101925,138.23,138.18,0.69658707]
[1767643365697,0.6995704,138.22,138.18,0.69658707]
[1767643366320,7.93389001,138.23,138.18,0.69658707]
[1767643366903,0.0040996,138.24,138.18,0.69658707]
[1767643367103,0.0040996,138.24,138.2,0.69658707]
[1767643367309,0.0040996,138.24,138.21,13.18]
[1767643367696,0.0040996,138.24,138.21,13.87658707]
[1767643367899,0.0040996,138.24,138.22,0.69658707]
[1767643368135,0.0040996,138.24,138.22,0.6365871]
[1767643371129,0.2,138.26,138.23,0.69658707]
[1767643371628,0.2,138.26,138.23,7.93084963]
[1767643372030,0.2,138.26,138.25,0.69658707]
[1767643372225,0.2,138.26,138.25,0.63658712]
[1767643372426,0.2,138.26,138.22,13.18]
[1767643372605,0.8995704,138.26,138.21,13.18]
[1767643373031,0.6995704,138.25,138.21,13.18]
[1767643373833,0.6995704,138.25,138.19,8.35013837]
[1767643374036,0.6995704,138.25,138.13,13.61168565]
[1767643374037,0.68487011,138.23,138.14,5.51529]
[1767643374213,0.68487011,138.23,138.16,0.68568785]
[1767643374410,0.68487011,138.22,138.18,0.68568785]
[1767643374616,0.68487011,138.22,138.18,0.6256879]
[1767643375223,0.68487011,138.22,138.14,18.09706614]
[1767643375224,0.68487011,138.21,138.14,26.44720451]
[1767643375537,0.68487011,138.21,138.16,7.23754354]
[1767643376031,0.68487011,138.21,138.15,7.23850886]
[1767643376632,0.68487011,138.21,138.16,0.68568785]
[1767643377015,14.13688184,138.23,138.16,0.68568785]
[1767643377220,14.13688184,138.23,138.18,0.68568785]
[1767643377422,0.68487011,138.22,138.18,0.68568785]
[1767643377811,7.23381148,138.24,138.18,0.68568785]
[1767643378011,0.88487011,138.26,138.2,0.68568785]
[1767643378217,8.11774265,138.26,138.22,0.68568785]
[1767643379035,0.88487011,138.26,138.22,0.68568785]
[1767643380028,0.2,138.26,138.22,7.92048416]
[1767643380734,0.2,138.26,138.22,0.68568785]
[1767643381322,0.2,138.26,138.22,7.92052533]
[1767643381643,0.1,138.27,138.25,0.71921326]
[1767643381842,0.1,138.35,138.26,0.71921326]
[1767643381843,0.65440643,138.31,138.26,0.71921326]
[1767643382024,0.65440643,138.32,138.27,20.41206783]
[1767643382223,0.65440643,138.31,138.27,13.18]
[1767643382435,0.65440643,138.3,138.27,13.18]
[1767643382736,0.65440643,138.3,138.26,13.18]
[1767643384120,7.84688972,138.29,138.25,13.18]
[1767643384824,14.06453806,138.29,138.25,13.18]
[1767643385231,7.84688972,138.29,138.24,0.71921326]